[Event "CHN-ch Blitz Open 2018"]
[Site "Tianjin"]
[Date "2018.06.08"]
[Round "8.9"]
[White "Li, Di"]
[Black "Li, Yankai"]
[Result "1-0"]
[ECO "C78"]
[WhiteElo "2338"]
[BlackElo "2337"]
[Annotator "RC"]
[PlyCount "89"]
[EventDate "2018.06.07"]
[EventType "blitz"]
[EventRounds "9"]
[EventCountry "CHN"]
[SourceTitle "playchess.com"]
[Source "ChessBase"]
[SourceQuality "1"]
[TimeControl "180+2"]

1. e4 {[%emt 0:00:00]} e5 {[%emt 0:00:02]} 2. Nf3 {[%emt 0:00:00]} Nc6 {[%emt 0:00:01]} 3. Bb5 {[%emt 0:00:02]} a6 {[%emt 0:00:00]} 4. Ba4 {[%emt 0:00:01]} Nf6 {[%emt 0:00:01]} 5. O-O {[%emt 0:00:05]} b5 {[%emt 0:00:01]} 6. Bb3 {[%emt 0:00:01]} Bc5 {[%emt 0:00:01]} 7. d3 {[%emt 0:00:04]} d6 {[%emt 0:00:01]} 8. h3 {[%emt 0:00:31]} O-O {[%emt 0:00:21]} 9. Bd2 {[%emt 0:00:07]} Bb7 {[%emt 0:00:23]} 10. a4 {[%emt 0:00:08]} Nd4 {[%emt 0:00:05]} 11. Nxd4 {[%emt 0:00:06]} Bxd4 {[%emt 0:00:02]} 12. c3 {[%emt 0:00:11]} Bb6 {[%emt 0:00:01]} 13. Na3 {[%emt 0:00:03]} Qd7 {[%emt 0:00:06]} 14. Qe2 {[%emt 0:00:09]} Rfe8 {[%emt 0:00:01]} 15. Bg5 {[%emt 0:00:20]} Qe7 {[%emt 0:01:15]} 16. axb5 {[%emt 0:00:10]} axb5 {[%emt 0:00:01]} 17. Nxb5 {[%emt 0:00:05]} h6 {[%emt 0:00:01]} 18. Be3 {[%emt 0:00:06]} Bc6 {[%emt 0:00:10]} 19. Na3 {[%emt 0:00:06]} Reb8 {[%emt 0:00:04]} 20. Bc4 {[%emt 0:00:35]} d5 {[%emt 0:00:17]} 21. exd5 {[%emt 0:00:06]} Nxd5 {[%emt 0:00:01]} 22. Bxd5 {[%emt 0:00:13]} Bxd5 {[%emt 0:00:01]} 23. Nc2 {[%emt 0:00:04]} Qe6 {[%emt 0:00:09]} 24. Bxb6 {[%emt 0:00:08]} Rxa1 {[%emt 0:00:09]} 25. Rxa1 {[%emt 0:00:02]} Rxb6 {[%emt 0:00:01]} 26. Ne3 {[%emt 0:00:04]} Bb3 {[%emt 0:00:07]} 27. Qg4 {[%emt 0:00:04]} Qxg4 {[%emt 0:00:15]} 28. hxg4 {[%emt 0:00:02]} g6 {[%emt 0:00:03]} 29. Kf1 {[%emt 0:00:02]} Kf8 {[%emt 0:00:06]} 30. Ra7 {[%emt 0:00:04]} c5 {[%emt 0:00:10]} 31. Rc7 {[%emt 0:00:03]} Rb5 {[%emt 0:00:01]} 32. c4 {[%emt 0:00:06]} Ra5 {[%emt 0:00:02]} 33. Nd5 {[%emt 0:00:02]} Ra2 {[%emt 0:00:01]} 34. Rxc5 {[%emt 0:00:07]} Rxb2 {[%emt 0:00:01]} 35. Ne3 {[%emt 0:00:02]} Ba2 {[%emt 0:00:03]} 36. Rxe5 {[%emt 0:00:06]} Bb1 {[%emt 0:00:02]} 37. d4 {[%emt 0:00:02]} Bd3+ {[%emt 0:00:02]} 38. Kg1 {[%emt 0:00:01]} Rb1+ {[%emt 0:00:04]} 39. Kh2 {[%emt 0:00:01]} Rb4 {[%emt 0:00:01]} 40. Rc5 {[%emt 0:00:05]} Kg7 {[%emt 0:00:02]} 41. Kg3 {[%emt 0:00:01]} Rb6 {[%emt 0:00:02]} 42. d5 {[%emt 0:00:01]} h5 {[%emt 0:00:05]} 43. gxh5 {[%emt 0:00:01]} g5 {[%emt 0:00:01]} 44. Rc6 {[%emt 0:00:02]} f6 {[%emt 0:00:02]} 45. h6+ {[%emt 0:00:02]} 1-0

[Event "CHN-ch Blitz Open 2018"]
[Site "Tianjin"]
[Date "2018.06.08"]
[Round "9.8"]
[White "Peng, Xiongjian"]
[Black "Li, Di"]
[Result "1-0"]
[ECO "E10"]
[WhiteElo "2321"]
[BlackElo "2338"]
[Annotator "RC"]
[PlyCount "117"]
[EventDate "2018.06.07"]
[EventType "blitz"]
[EventRounds "9"]
[EventCountry "CHN"]
[SourceTitle "playchess.com"]
[Source "ChessBase"]
[SourceQuality "1"]
[TimeControl "180+2"]

1. d4 {[%emt 0:00:00]} Nf6 {[%emt 0:00:01]} 2. c4 {[%emt 0:00:01]} e6 {[%emt 0:00:02]} 3. Nf3 {[%emt 0:00:02]} d5 {[%emt 0:00:01]} 4. e3 {[%emt 0:00:04]} c5 {[%emt 0:00:01]} 5. Nc3 {[%emt 0:00:04]} Nc6 {[%emt 0:00:01]} 6. Be2 {[%emt 0:00:06]} cxd4 {[%emt 0:00:09]} 7. exd4 {[%emt 0:00:03]} dxc4 {[%emt 0:00:06]} 8. Bxc4 {[%emt 0:00:02]} Bb4 {[%emt 0:00:02]} 9. O-O {[%emt 0:00:04]} O-O {[%emt 0:00:02]} 10. Bg5 {[%emt 0:00:02]} Bxc3 {[%emt 0:00:05]} 11. bxc3 {[%emt 0:00:02]} b6 {[%emt 0:00:01]} 12. Qe2 {[%emt 0:00:13]} Bb7 {[%emt 0:00:01]} 13. Rfd1 {[%emt 0:00:26]} Ne7 {[%emt 0:00:04]} 14. Ne5 {[%emt 0:00:06]} Rc8 {[%emt 0:00:21]} 15. Rac1 {[%emt 0:00:05]} Qd6 {[%emt 0:00:22]} 16. Bd3 {[%emt 0:00:08]} Ng6 {[%emt 0:00:08]} 17. Bxf6 {[%emt 0:00:06]} gxf6 {[%emt 0:00:02]} 18. Ng4 {[%emt 0:00:02]} Kg7 {[%emt 0:00:17]} 19. Qe3 {[%emt 0:00:04]} Qf4 {[%emt 0:00:02]} 20. Bxg6 {[%emt 0:00:07]} Qxe3 {[%emt 0:00:03]} 21. Nxe3 {[%emt 0:00:03]} hxg6 {[%emt 0:00:02]} 22. c4 {[%emt 0:00:09]} f5 {[%emt 0:00:02]} 23. f4 {[%emt 0:00:02]} Rh8 {[%emt 0:00:06]} 24. g3 {[%emt 0:00:04]} Rh3 {[%emt 0:00:10]} 25. d5 {[%emt 0:00:06]} Kf6 {[%emt 0:00:03]} 26. dxe6 {[%emt 0:00:31]} fxe6 {[%emt 0:00:02]} 27. Rd7 {[%emt 0:00:01]} Be4 {[%emt 0:00:06]} 28. Rxa7 {[%emt 0:00:07]} g5 {[%emt 0:00:17]} 29. fxg5+ {[%emt 0:00:04]} Kxg5 {[%emt 0:00:01]} 30. Ng2 {[%emt 0:00:28]} Rch8 {[%emt 0:00:26]} 31. Nh4 {[%emt 0:00:02]} f4 {[%emt 0:00:13]} 32. Rc3 {[%emt 0:00:12]} R8xh4 {[%emt 0:00:22]} 33. gxh4+ {[%emt 0:00:03]} Rxh4 {[%emt 0:00:01]} 34. Rg7+ {[%emt 0:00:08]} Kf6 {[%emt 0:00:01]} 35. Rg8 {[%emt 0:00:02]} Ke5 {[%emt 0:00:10]} 36. c5 {[%emt 0:00:12]} bxc5 {[%emt 0:00:01]} 37. Rxc5+ {[%emt 0:00:01]} Kd4 {[%emt 0:00:01]} 38. Rc1 {[%emt 0:00:04]} Rh7 {[%emt 0:00:12]} 39. a4 {[%emt 0:00:03]} Bd5 {[%emt 0:00:10]} 40. a5 {[%emt 0:00:02]} f3 {[%emt 0:00:02]} 41. a6 {[%emt 0:00:02]} Ke3 {[%emt 0:00:02]} 42. Re1+ {[%emt 0:00:06]} Kd2 {[%emt 0:00:01]} 43. Ra1 {[%emt 0:00:02]} Ke3 {[%emt 0:00:00]} 44. Re1+ {[%emt 0:00:04]} Kd2 {[%emt 0:00:01]} 45. Rf1 {[%emt 0:00:01]} Ra7 {[%emt 0:00:02]} 46. Rf2+ {[%emt 0:00:01]} Ke3 {[%emt 0:00:01]} 47. Rc8 {[%emt 0:00:03]} Rxa6 {[%emt 0:00:01]} 48. Rc3+ {[%emt 0:00:01]} Kf4 {[%emt 0:00:01]} 49. Rf1 {[%emt 0:00:02]} e5 {[%emt 0:00:02]} 50. Rd1 {[%emt 0:00:01]} Ba8 {[%emt 0:00:02]} 51. Rc8 {[%emt 0:00:01]} Rg6+ {[%emt 0:00:06]} 52. Kf1 {[%emt 0:00:02]} Bc6 {[%emt 0:00:04]} 53. Rf8+ {[%emt 0:00:01]} Ke3 {[%emt 0:00:01]} 54. Re1+ {[%emt 0:00:01]} Kd4 {[%emt 0:00:01]} 55. Rd8+ {[%emt 0:00:01]} Kc4 {[%emt 0:00:05]} 56. Rc1+ {[%emt 0:00:02]} Kb3 {[%emt 0:00:02]} 57. Rb8+ {[%emt 0:00:01]} Ka2 {[%emt 0:00:01]} 58. Rb6 {[%emt 0:00:04]} e4 {[%emt 0:00:03]} 59. Rcxc6 {[%emt 0:00:02]} 1-0